[Event "*** Titled Tuesday Blitz"]
[Site "Chess.com"]
[Date "2020.03.03"]
[Round "5"]
[White "gena217"]
[Black "Tayson_7"]
[Result "1/2-1/2"]
[WhiteElo "3007"]
[BlackElo "2711"]
[TimeControl "180+1"]
[EndTime "13:53:00 PST"]
[Termination "Game drawn - insufficient material"]

1. a3 {[%clk 0:02:53.6]} 1... Nf6 {[%clk 0:02:55.3]} 2. d4 {[%clk 0:02:50.8]}
2... g6 {[%clk 0:02:51.8]} 3. Nf3 {[%clk 0:02:47.8]} 3... Bg7 {[%clk 0:02:51.7]}
4. e3 {[%clk 0:02:46.5]} 4... O-O {[%clk 0:02:51.1]} 5. Be2 {[%clk 0:02:47.1]}
5... d5 {[%clk 0:02:47.8]} 6. O-O {[%clk 0:02:46.6]} 6... Bg4 {[%clk 0:02:45.5]}
7. Nbd2 {[%clk 0:02:43.8]} 7... Nbd7 {[%clk 0:02:32.3]} 8. b4 {[%clk 0:02:42.1]}
8... c6 {[%clk 0:02:29.6]} 9. Bb2 {[%clk 0:02:40.4]} 9... b5 {[%clk 0:02:29.3]}
10. a4 {[%clk 0:02:28.8]} 10... a6 {[%clk 0:02:28.3]} 11. Nb3 {[%clk 0:02:27.4]}
11... Ne4 {[%clk 0:02:23.1]} 12. Na5 {[%clk 0:02:15.7]} 12... Qc7 {[%clk
0:02:19.9]} 13. h3 {[%clk 0:02:09.6]} 13... Bxf3 {[%clk 0:02:18.9]} 14. gxf3
{[%clk 0:02:10.3]} 14... Nd6 {[%clk 0:02:14]} 15. f4 {[%clk 0:02:02.7]} 15...
Nb6 {[%clk 0:02:12.6]} 16. axb5 {[%clk 0:02:01.4]} 16... axb5 {[%clk 0:02:13.2]}
17. Bc3 {[%clk 0:01:55.1]} 17... f6 {[%clk 0:02:09.7]} 18. Bg4 {[%clk
0:01:38.9]} 18... Na4 {[%clk 0:01:50.5]} 19. Be1 {[%clk 0:01:33.8]} 19... e5
{[%clk 0:01:48.8]} 20. fxe5 {[%clk 0:01:31]} 20... fxe5 {[%clk 0:01:49.7]} 21.
dxe5 {[%clk 0:01:30.2]} 21... Bxe5 {[%clk 0:01:49.7]} 22. Ra3 {[%clk 0:01:27.6]}
22... Kh8 {[%clk 0:01:35]} 23. Bf3 {[%clk 0:01:23.6]} 23... Nb2 {[%clk
0:01:01.1]} 24. Qe2 {[%clk 0:01:20.2]} 24... Nbc4 {[%clk 0:01:01.4]} 25. Rd3
{[%clk 0:01:10.6]} 25... Nxa5 {[%clk 0:00:58.7]} 26. bxa5 {[%clk 0:01:10.4]}
26... Nc4 {[%clk 0:00:59.2]} 27. Bg2 {[%clk 0:01:08]} 27... Nxa5 {[%clk
0:00:57.9]} 28. f4 {[%clk 0:01:07.8]} 28... Bg7 {[%clk 0:00:57.8]} 29. e4 {[%clk
0:01:08.4]} 29... dxe4 {[%clk 0:00:57.6]} 30. Qxe4 {[%clk 0:01:08.2]} 30... Rae8
{[%clk 0:00:56.1]} 31. Qf3 {[%clk 0:01:04.5]} 31... c5 {[%clk 0:00:38.6]} 32.
Kh1 {[%clk 0:01:01.2]} 32... Nc4 {[%clk 0:00:36.9]} 33. Qc6 {[%clk 0:01:00.4]}
33... Qxc6 {[%clk 0:00:35.2]} 34. Bxc6 {[%clk 0:01:01.3]} 34... Rb8 {[%clk
0:00:33.1]} 35. Bg2 {[%clk 0:00:51]} 35... b4 {[%clk 0:00:31.9]} 36. Bf2 {[%clk
0:00:48.3]} 36... Rbc8 {[%clk 0:00:30.8]} 37. Rd5 {[%clk 0:00:47.9]} 37... Rxf4
{[%clk 0:00:29.1]} 38. Bxc5 {[%clk 0:00:38.9]} 38... Rxf1+ {[%clk 0:00:28.9]}
39. Bxf1 {[%clk 0:00:39.8]} 39... Na3 {[%clk 0:00:29.2]} 40. Ba6 {[%clk
0:00:31.5]} 40... Re8 {[%clk 0:00:19.2]} 41. Bd3 {[%clk 0:00:31]} 41... Bc3
{[%clk 0:00:19.6]} 42. Kg2 {[%clk 0:00:29.3]} 42... Nb1 {[%clk 0:00:16.7]} 43.
Rd7 {[%clk 0:00:27.1]} 43... Nd2 {[%clk 0:00:16.1]} 44. Rb7 {[%clk 0:00:26.8]}
44... Ne4 {[%clk 0:00:08.7]} 45. Bxb4 {[%clk 0:00:26.4]} 45... Bxb4 {[%clk
0:00:08.9]} 46. Rxb4 {[%clk 0:00:27.3]} 46... Nc5 {[%clk 0:00:09.3]} 47. Kf2
{[%clk 0:00:22.5]} 47... Nxd3+ {[%clk 0:00:08.4]} 48. cxd3 {[%clk 0:00:23.4]}
48... Kg7 {[%clk 0:00:09.1]} 49. Rb7+ {[%clk 0:00:22.1]} 49... Kh6 {[%clk
0:00:09.3]} 50. Kf3 {[%clk 0:00:21.2]} 50... g5 {[%clk 0:00:09.4]} 51. d4 {[%clk
0:00:18.9]} 51... Kg6 {[%clk 0:00:09.7]} 52. d5 {[%clk 0:00:18.3]} 52... h5
{[%clk 0:00:10]} 53. d6 {[%clk 0:00:17.1]} 53... Kf6 {[%clk 0:00:10.2]} 54. Rh7
{[%clk 0:00:16]} 54... Rd8 {[%clk 0:00:08.3]} 55. Rxh5 {[%clk 0:00:14.9]} 55...
Rxd6 {[%clk 0:00:07.8]} 56. Rh6+ {[%clk 0:00:15.5]} 56... Ke5 {[%clk 0:00:08.1]}
57. Rxd6 {[%clk 0:00:15.6]} 57... Kxd6 {[%clk 0:00:09]} 58. Kg4 {[%clk
0:00:16.5]} 58... Ke7 {[%clk 0:00:09.5]} 59. Kxg5 {[%clk 0:00:17.4]} 59... Kf7
{[%clk 0:00:10.1]} 60. h4 {[%clk 0:00:17.8]} 60... Kg7 {[%clk 0:00:10.5]} 61. h5
{[%clk 0:00:18.7]} 61... Kh7 {[%clk 0:00:11.1]} 62. h6 {[%clk 0:00:19.6]} 62...
Kh8 {[%clk 0:00:11.5]} 63. h7 {[%clk 0:00:20.5]} 63... Kxh7 {[%clk 0:00:11.7]}
1/2-1/2

[Event "*** Titled Tuesday Blitz"]
[Site "Chess.com"]
[Date "2020.03.03"]
[Round "5"]
[White "czasnaszachy"]
[Black "praveenb2002"]
[Result "0-1"]
[WhiteElo "2276"]
[BlackElo "2635"]
[TimeControl "180+1"]
[EndTime "13:53:01 PST"]
[Termination "praveenb2002 won on time"]

1. d4 {[%clk 0:03:00.9]} 1... Nf6 {[%clk 0:02:59.5]} 2. c4 {[%clk 0:03:00.4]}
2... e6 {[%clk 0:02:59.7]} 3. Nf3 {[%clk 0:02:59]} 3... d5 {[%clk 0:02:59.2]} 4.
Nc3 {[%clk 0:02:58]} 4... Be7 {[%clk 0:02:59.4]} 5. Bf4 {[%clk 0:02:57.6]} 5...
O-O {[%clk 0:02:58.8]} 6. e3 {[%clk 0:02:57.8]} 6... b6 {[%clk 0:02:58]} 7. cxd5
{[%clk 0:02:56.6]} 7... Nxd5 {[%clk 0:02:57.9]} 8. Nxd5 {[%clk 0:02:56.5]} 8...
Qxd5 {[%clk 0:02:58.8]} 9. Bd3 {[%clk 0:02:41.2]} 9... Bb4+ {[%clk 0:02:48.1]}
10. Ke2 {[%clk 0:02:41.3]} 10... Ba6 {[%clk 0:02:43.1]} 11. a3 {[%clk
0:02:23.2]} 11... Bd6 {[%clk 0:02:40.9]} 12. Bxd6 {[%clk 0:02:19.5]} 12... Qxd6
{[%clk 0:02:38.1]} 13. Bxa6 {[%clk 0:02:19.3]} 13... Nxa6 {[%clk 0:02:37.7]} 14.
Qd3 {[%clk 0:02:19.8]} 14... Nb8 {[%clk 0:02:36.5]} 15. Rhc1 {[%clk 0:02:19.3]}
15... Nd7 {[%clk 0:02:35]} 16. Rc3 {[%clk 0:02:14.2]} 16... c5 {[%clk 0:02:33]}
17. dxc5 {[%clk 0:02:09.5]} 17... Qxd3+ {[%clk 0:02:29.8]} 18. Rxd3 {[%clk
0:02:09.6]} 18... Nxc5 {[%clk 0:02:29.9]} 19. Rc3 {[%clk 0:02:05.9]} 19... Rad8
{[%clk 0:02:28]} 20. Rd1 {[%clk 0:02:02.3]} 20... Ne4 {[%clk 0:02:25.5]} 21. Rc2
{[%clk 0:01:57.7]} 21... Rc8 {[%clk 0:02:17.1]} 22. Rdc1 {[%clk 0:01:55.6]}
22... Rxc2+ {[%clk 0:02:09.2]} 23. Rxc2 {[%clk 0:01:55.6]} 23... Nc5 {[%clk
0:02:09.6]} 24. b4 {[%clk 0:01:53.4]} 24... Na6 {[%clk 0:02:09.7]} 25. Ne5
{[%clk 0:01:48.9]} 25... f6 {[%clk 0:02:08.4]} 26. Nc6 {[%clk 0:01:46.5]} 26...
Ra8 {[%clk 0:02:07.9]} 27. Rd2 {[%clk 0:01:41.2]} 27... Nc7 {[%clk 0:01:57.8]}
28. Rd7 {[%clk 0:01:40.1]} 28... Nb5 {[%clk 0:01:57.8]} 29. a4 {[%clk
0:01:27.2]} 29... Nc3+ {[%clk 0:01:57.9]} 30. Kd3 {[%clk 0:01:26.6]} 30... Nxa4
{[%clk 0:01:58]} 31. Rxa7 {[%clk 0:01:25.9]} 31... Nb2+ {[%clk 0:01:41.1]} 32.
Kc2 {[%clk 0:01:17.2]} 32... Rxa7 {[%clk 0:01:30]} 33. Nxa7 {[%clk 0:01:17]}
33... Nc4 {[%clk 0:01:30.6]} 34. Nc8 {[%clk 0:01:01.2]} 34... b5 {[%clk
0:01:23.9]} 35. Na7 {[%clk 0:00:54.3]} 35... Nd6 {[%clk 0:01:23.3]} 36. Kd3
{[%clk 0:00:53.4]} 36... e5 {[%clk 0:01:23.6]} 37. Nc6 {[%clk 0:00:42]} 37...
Kf7 {[%clk 0:01:23.6]} 38. Na5 {[%clk 0:00:38.8]} 38... Ke6 {[%clk 0:01:23.8]}
39. Nb3 {[%clk 0:00:38.7]} 39... Kd5 {[%clk 0:01:22.3]} 40. f3 {[%clk
0:00:35.5]} 40... f5 {[%clk 0:01:21.9]} 41. Nc5 {[%clk 0:00:33.7]} 41... e4+
{[%clk 0:01:21.4]} 42. Kc3 {[%clk 0:00:32.3]} 42... Nc4 {[%clk 0:01:19.7]} 43.
fxe4+ {[%clk 0:00:28.2]} 43... fxe4 {[%clk 0:01:19.7]} 44. Nd7 {[%clk 0:00:19]}
44... Nxe3 {[%clk 0:01:18.2]} 45. g3 {[%clk 0:00:18.7]} 45... Nf1 {[%clk
0:01:16.7]} 46. Nf8 {[%clk 0:00:18.1]} 46... h6 {[%clk 0:01:14.8]} 47. Ng6
{[%clk 0:00:17.2]} 47... Nxh2 {[%clk 0:01:14.9]} 48. Ne7+ {[%clk 0:00:16.1]}
48... Ke6 {[%clk 0:01:09.9]} 49. Nc6 {[%clk 0:00:16]} 49... Nf3 {[%clk
0:01:10.4]} 50. Na7 {[%clk 0:00:13.4]} 50... h5 {[%clk 0:01:03.6]} 51. Nxb5
{[%clk 0:00:13.4]} 51... g5 {[%clk 0:01:04]} 52. Nd4+ {[%clk 0:00:11.6]} 52...
Kd5 {[%clk 0:00:51.6]} 53. Ne2 {[%clk 0:00:11.5]} 53... Ne5 {[%clk 0:00:37.2]}
54. b5 {[%clk 0:00:07.2]} 54... Nd7 {[%clk 0:00:37.2]} 55. Kd2 {[%clk
0:00:05.9]} 55... Nb6 {[%clk 0:00:35.7]} 56. Ke3 {[%clk 0:00:05.6]} 56... Nc4+
{[%clk 0:00:36]} 57. Kf2 {[%clk 0:00:05.3]} 57... Ke5 {[%clk 0:00:31.8]} 58. Nc3
{[%clk 0:00:04.1]} 58... Kd4 {[%clk 0:00:31.6]} 59. Ne2+ {[%clk 0:00:03.7]}
59... Kd3 {[%clk 0:00:31.7]} 60. Nc1+ {[%clk 0:00:01.2]} 60... Kd2 {[%clk
0:00:31.9]} 61. Ne2 {[%clk 0:00:01.1]} 61... e3+ {[%clk 0:00:31.7]} 62. Kf3
{[%clk 0:00:01.3]} 62... Ne5+ {[%clk 0:00:31.4]} 63. Ke4 {[%clk 0:00:01.4]}
63... Kxe2 {[%clk 0:00:31.6]} 0-1

[Event "*** Titled Tuesday Blitz"]
[Site "Chess.com"]
[Date "2020.03.03"]
[Round "5"]
[White "AvitalBor"]
[Black "nocnypako"]
[Result "1/2-1/2"]
[WhiteElo "2783"]
[BlackElo "2586"]
[TimeControl "180+1"]
[EndTime "13:53:03 PST"]
[Termination "Game drawn - insufficient material"]

1. e4 {[%clk 0:02:56.8]} 1... e6 {[%clk 0:02:53.3]} 2. d4 {[%clk 0:02:55.7]}
2... d5 {[%clk 0:02:53.9]} 3. Nd2 {[%clk 0:02:56.3]} 3... c5 {[%clk 0:02:52.9]}
4. exd5 {[%clk 0:02:55.9]} 4... Qxd5 {[%clk 0:02:52.6]} 5. dxc5 {[%clk
0:02:52.5]} 5... Bxc5 {[%clk 0:02:53.5]} 6. Ngf3 {[%clk 0:02:51.6]} 6... Nf6
{[%clk 0:02:53.7]} 7. Bc4 {[%clk 0:02:45]} 7... Qh5 {[%clk 0:02:53.4]} 8. Qe2
{[%clk 0:02:36.7]} 8... Nc6 {[%clk 0:02:49.2]} 9. O-O {[%clk 0:02:33]} 9... O-O
{[%clk 0:02:48.2]} 10. h3 {[%clk 0:02:32.8]} 10... a6 {[%clk 0:02:46.3]} 11. Ne4
{[%clk 0:02:32.1]} 11... Nxe4 {[%clk 0:02:45.5]} 12. Qxe4 {[%clk 0:02:32.6]}
12... Qg6 {[%clk 0:02:35.5]} 13. Qxg6 {[%clk 0:02:32.2]} 13... hxg6 {[%clk
0:02:36.4]} 14. Rd1 {[%clk 0:02:26.7]} 14... b5 {[%clk 0:02:19.7]} 15. Be2
{[%clk 0:02:24.9]} 15... Bb7 {[%clk 0:02:19.7]} 16. Rd7 {[%clk 0:02:02]} 16...
Ra7 {[%clk 0:02:10.1]} 17. a4 {[%clk 0:01:54.8]} 17... b4 {[%clk 0:02:02]} 18.
Be3 {[%clk 0:01:54.4]} 18... Bxe3 {[%clk 0:01:56.9]} 19. fxe3 {[%clk 0:01:55.3]}
19... Rd8 {[%clk 0:01:52.1]} 20. Rad1 {[%clk 0:01:51.4]} 20... Rxd7 {[%clk
0:01:51.2]} 21. Rxd7 {[%clk 0:01:52]} 21... Bc8 {[%clk 0:01:49.5]} 22. Rd6
{[%clk 0:01:29.2]} 22... Rc7 {[%clk 0:01:49.2]} 23. Ng5 {[%clk 0:01:28.9]} 23...
Kf8 {[%clk 0:01:47.7]} 24. Bf3 {[%clk 0:00:58.7]} 24... Bb7 {[%clk 0:01:40]} 25.
Bxc6 {[%clk 0:00:55.5]} 25... Bxc6 {[%clk 0:01:40.9]} 26. a5 {[%clk 0:00:41.4]}
26... Ke7 {[%clk 0:01:34.6]} 27. Rd4 {[%clk 0:00:40.4]} 27... Bb5 {[%clk
0:01:31.5]} 28. Rxb4 {[%clk 0:00:39]} 28... Rxc2 {[%clk 0:01:29.6]} 29. Nf3
{[%clk 0:00:36]} 29... Rc4 {[%clk 0:00:42.3]} 30. Rxc4 {[%clk 0:00:31.7]} 30...
Bxc4 {[%clk 0:00:43.2]} 31. Kf2 {[%clk 0:00:29.2]} 31... Bd5 {[%clk 0:00:41.3]}
32. Nd2 {[%clk 0:00:24.4]} 32... Kd6 {[%clk 0:00:39.5]} 33. e4 {[%clk 0:00:24]}
33... Bb7 {[%clk 0:00:35.8]} 34. b4 {[%clk 0:00:21.8]} 34... Kc6 {[%clk
0:00:29.2]} 35. Nc4 {[%clk 0:00:20.8]} 35... Ba8 {[%clk 0:00:19.2]} 36. Na3
{[%clk 0:00:20]} 36... e5 {[%clk 0:00:12.9]} 37. Ke3 {[%clk 0:00:20]} 37... f5
{[%clk 0:00:12.9]} 38. Nc4 {[%clk 0:00:17.3]} 38... Kb5 {[%clk 0:00:12.3]} 39.
Nxe5 {[%clk 0:00:17.2]} 39... Bxe4 {[%clk 0:00:11.4]} 40. Nxg6 {[%clk
0:00:16.5]} 40... Bxg2 {[%clk 0:00:09.6]} 41. h4 {[%clk 0:00:16.7]} 41... Kxb4
{[%clk 0:00:09.4]} 42. Ne7 {[%clk 0:00:17]} 42... Bh3 {[%clk 0:00:08.7]} 43. Kf4
{[%clk 0:00:17.2]} 43... Kxa5 {[%clk 0:00:08.7]} 44. Nxf5 {[%clk 0:00:17.6]}
44... Bxf5 {[%clk 0:00:06.3]} 45. Kxf5 {[%clk 0:00:18.5]} 45... Kb6 {[%clk
0:00:07]} 46. Kg6 {[%clk 0:00:19.1]} 46... a5 {[%clk 0:00:07.8]} 47. Kxg7 {[%clk
0:00:19.6]} 47... a4 {[%clk 0:00:08.5]} 48. h5 {[%clk 0:00:20]} 48... a3 {[%clk
0:00:09.3]} 49. h6 {[%clk 0:00:20.9]} 49... a2 {[%clk 0:00:10]} 50. h7 {[%clk
0:00:20.4]} 50... a1=Q+ {[%clk 0:00:10.6]} 51. Kg8 {[%clk 0:00:20.6]} 51... Qg1+
{[%clk 0:00:11]} 52. Kh8 {[%clk 0:00:20.7]} 52... Qd4+ {[%clk 0:00:11.6]} 53.
Kg8 {[%clk 0:00:20.8]} 53... Qg4+ {[%clk 0:00:12.2]} 54. Kh8 {[%clk 0:00:21]}
54... Qh5 {[%clk 0:00:12.9]} 55. Kg8 {[%clk 0:00:20.9]} 55... Qg6+ {[%clk
0:00:12.7]} 56. Kh8 {[%clk 0:00:20.9]} 56... Qf5 {[%clk 0:00:12]} 57. Kg8 {[%clk
0:00:20.4]} 57... Qe5 {[%clk 0:00:12.3]} 58. h8=Q {[%clk 0:00:18.9]} 58... Qxh8+
{[%clk 0:00:12.1]} 59. Kxh8 {[%clk 0:00:19.4]} 1/2-1/2

[Event "*** Titled Tuesday Blitz"]
[Site "Chess.com"]
[Date "2020.03.03"]
[Round "5"]
[White "Dale"]
[Black "karinachess1"]
[Result "1-0"]
[WhiteElo "1943"]
[BlackElo "2513"]
[TimeControl "180+1"]
[EndTime "13:53:04 PST"]
[Termination "Dale won on time"]

1. c3 {[%clk 0:03:00.9]} 1... c5 {[%clk 0:02:57.6]} 2. d3 {[%clk 0:03:01.8]}
2... d5 {[%clk 0:02:54.2]} 3. g3 {[%clk 0:03:02]} 3... Nf6 {[%clk 0:02:52.7]} 4.
Bg2 {[%clk 0:03:01.6]} 4... Nc6 {[%clk 0:02:52.9]} 5. Bg5 {[%clk 0:03:00.9]}
5... e5 {[%clk 0:02:41.3]} 6. Qb3 {[%clk 0:03:00.6]} 6... d4 {[%clk 0:02:14]} 7.
Nd2 {[%clk 0:02:59.4]} 7... Be7 {[%clk 0:02:11.6]} 8. Ngf3 {[%clk 0:02:58.5]}
8... O-O {[%clk 0:02:10]} 9. O-O {[%clk 0:02:58.5]} 9... h6 {[%clk 0:02:07.4]}
10. Bxf6 {[%clk 0:02:57.6]} 10... Bxf6 {[%clk 0:02:08.3]} 11. Rac1 {[%clk
0:02:56.2]} 11... Be7 {[%clk 0:02:02.2]} 12. cxd4 {[%clk 0:02:50.4]} 12... exd4
{[%clk 0:01:50.2]} 13. Ne4 {[%clk 0:02:49]} 13... b6 {[%clk 0:01:48.7]} 14. Nfd2
{[%clk 0:02:36.8]} 14... Be6 {[%clk 0:01:47.9]} 15. Qa4 {[%clk 0:02:33.1]} 15...
Bd5 {[%clk 0:01:45.2]} 16. a3 {[%clk 0:02:24.5]} 16... f5 {[%clk 0:01:37.4]} 17.
b4 {[%clk 0:02:24.5]} 17... Rc8 {[%clk 0:01:30.6]} 18. bxc5 {[%clk 0:02:15.9]}
18... fxe4 {[%clk 0:01:28.6]} 19. dxe4 {[%clk 0:02:14.7]} 19... Be6 {[%clk
0:01:28.7]} 20. cxb6 {[%clk 0:02:14.2]} 20... Qxb6 {[%clk 0:01:26.9]} 21. Rb1
{[%clk 0:02:01.4]} 21... Qa5 {[%clk 0:01:24.8]} 22. Qxa5 {[%clk 0:01:57.7]}
22... Nxa5 {[%clk 0:01:25.7]} 23. Nf3 {[%clk 0:01:57.6]} 23... Rfd8 {[%clk
0:01:23.3]} 24. Rfd1 {[%clk 0:01:51.2]} 24... Bc5 {[%clk 0:01:19.1]} 25. a4
{[%clk 0:01:42.2]} 25... Bb3 {[%clk 0:01:08.7]} 26. Rf1 {[%clk 0:01:33.6]} 26...
Bc4 {[%clk 0:01:06.2]} 27. Rfe1 {[%clk 0:01:28.9]} 27... Rb8 {[%clk 0:01:02.9]}
28. Rbc1 {[%clk 0:01:21.4]} 28... Bb4 {[%clk 0:01:00.4]} 29. Red1 {[%clk
0:01:14.3]} 29... Bc3 {[%clk 0:00:47.7]} 30. Bf1 {[%clk 0:01:06.8]} 30... Bb3
{[%clk 0:00:45.5]} 31. Ne5 {[%clk 0:01:01]} 31... Bxd1 {[%clk 0:00:44.3]} 32.
Rxd1 {[%clk 0:01:01.2]} 32... Rbc8 {[%clk 0:00:40.8]} 33. Bh3 {[%clk 0:00:58]}
33... Rb8 {[%clk 0:00:38.9]} 34. Be6+ {[%clk 0:00:55.7]} 34... Kh7 {[%clk
0:00:29.9]} 35. Bf5+ {[%clk 0:00:52.9]} 35... g6 {[%clk 0:00:29.7]} 36. Bxg6+
{[%clk 0:00:52.5]} 36... Kg7 {[%clk 0:00:29.6]} 37. Bf5 {[%clk 0:00:52.1]} 37...
Rb4 {[%clk 0:00:20.7]} 38. Nd3 {[%clk 0:00:49.4]} 38... Rxa4 {[%clk 0:00:20.5]}
39. Nf4 {[%clk 0:00:48.8]} 39... Kf7 {[%clk 0:00:17.9]} 40. Nd5 {[%clk
0:00:45.2]} 40... Rb8 {[%clk 0:00:14.5]} 41. e5 {[%clk 0:00:42.2]} 41... Nc4
{[%clk 0:00:13.3]} 42. e6+ {[%clk 0:00:42]} 42... Kg7 {[%clk 0:00:10.1]} 43. e7
{[%clk 0:00:37.6]} 43... Nd6 {[%clk 0:00:10.3]} 44. Bd7 {[%clk 0:00:37.2]} 44...
Ne8 {[%clk 0:00:09.4]} 45. Bxa4 {[%clk 0:00:36.4]} 45... Kf7 {[%clk 0:00:07.9]}
46. Nxc3 {[%clk 0:00:30.7]} 46... dxc3 {[%clk 0:00:08.8]} 47. Rc1 {[%clk
0:00:30.9]} 47... Rc8 {[%clk 0:00:08.3]} 48. Kg2 {[%clk 0:00:29.7]} 48... Nd6
{[%clk 0:00:08]} 49. Kf3 {[%clk 0:00:25.3]} 49... Kxe7 {[%clk 0:00:08.4]} 50.
Ke3 {[%clk 0:00:24]} 50... Nb7 {[%clk 0:00:05.1]} 51. Bd1 {[%clk 0:00:17.5]}
51... Na5 {[%clk 0:00:03]} 52. Kd3 {[%clk 0:00:15.9]} 52... Rd8+ {[%clk
0:00:03.2]} 53. Kxc3 {[%clk 0:00:12]} 53... Rc8+ {[%clk 0:00:03.5]} 54. Kd2
{[%clk 0:00:08]} 54... Rd8+ {[%clk 0:00:03.4]} 55. Ke1 {[%clk 0:00:04]} 55...
Rd7 {[%clk 0:00:03.5]} 56. Ba4 {[%clk 0:00:03.5]} 56... Rb7 {[%clk 0:00:02.9]}
57. h3 {[%clk 0:00:03.6]} 57... a6 {[%clk 0:00:02.5]} 58. h4 {[%clk 0:00:03.8]}
58... Ke6 {[%clk 0:00:01.3]} 59. Bd1 {[%clk 0:00:03.5]} 1-0

[Event "*** Titled Tuesday Blitz"]
[Site "Chess.com"]
[Date "2020.03.03"]
[Round "5"]
[White "guillembaches"]
[Black "RitvarsReimanis"]
[Result "1/2-1/2"]
[WhiteElo "2422"]
[BlackElo "2622"]
[TimeControl "180+1"]
[EndTime "13:53:10 PST"]
[Termination "Game drawn by repetition"]

1. e4 {[%clk 0:03:00.9]} 1... c5 {[%clk 0:03:00.1]} 2. Nf3 {[%clk 0:03:00.8]}
2... Nc6 {[%clk 0:03:00.2]} 3. d4 {[%clk 0:03:00.3]} 3... cxd4 {[%clk
0:02:59.9]} 4. Nxd4 {[%clk 0:03:01.2]} 4... Nf6 {[%clk 0:02:59.9]} 5. Nc3 {[%clk
0:03:01.4]} 5... e5 {[%clk 0:02:59.9]} 6. Ndb5 {[%clk 0:03:01.9]} 6... d6 {[%clk
0:03:00.2]} 7. Bg5 {[%clk 0:03:02.2]} 7... a6 {[%clk 0:02:58.3]} 8. Na3 {[%clk
0:03:02.7]} 8... b5 {[%clk 0:02:56.2]} 9. Nd5 {[%clk 0:03:03.1]} 9... Be7 {[%clk
0:02:56.1]} 10. Bxf6 {[%clk 0:03:03.4]} 10... Bxf6 {[%clk 0:02:48.9]} 11. c4
{[%clk 0:03:03.9]} 11... b4 {[%clk 0:02:47.6]} 12. Nc2 {[%clk 0:03:04.4]} 12...
O-O {[%clk 0:02:37]} 13. Be2 {[%clk 0:03:04.7]} 13... Be6 {[%clk 0:02:23]} 14.
O-O {[%clk 0:03:04.7]} 14... Ra7 {[%clk 0:01:48.4]} 15. Qd3 {[%clk 0:02:37.6]}
15... Bxd5 {[%clk 0:01:38.8]} 16. cxd5 {[%clk 0:02:31.5]} 16... Nb8 {[%clk
0:01:35.8]} 17. Nxb4 {[%clk 0:02:30.4]} 17... Qb6 {[%clk 0:01:35.5]} 18. Nc6
{[%clk 0:02:16.7]} 18... Nxc6 {[%clk 0:01:25.4]} 19. dxc6 {[%clk 0:02:16.6]}
19... Qxc6 {[%clk 0:01:25.9]} 20. Rfc1 {[%clk 0:02:15.9]} 20... Qb6 {[%clk
0:01:25.4]} 21. b3 {[%clk 0:02:10.6]} 21... a5 {[%clk 0:01:11.8]} 22. Rc4 {[%clk
0:01:58.1]} 22... g6 {[%clk 0:00:39.2]} 23. Rac1 {[%clk 0:01:54.8]} 23... Bg5
{[%clk 0:00:38.4]} 24. Rc6 {[%clk 0:01:44.6]} 24... Qb4 {[%clk 0:00:32.5]} 25.
Rd1 {[%clk 0:01:35.5]} 25... Be7 {[%clk 0:00:23]} 26. Qd5 {[%clk 0:01:29.2]}
26... a4 {[%clk 0:00:20.4]} 27. Rc4 {[%clk 0:01:14.6]} 27... Qa3 {[%clk
0:00:17.6]} 28. Rxa4 {[%clk 0:01:13.2]} 28... Rxa4 {[%clk 0:00:18.5]} 29. bxa4
{[%clk 0:01:13.1]} 29... Qxa4 {[%clk 0:00:19.4]} 30. Bc4 {[%clk 0:01:10.6]}
30... Kg7 {[%clk 0:00:17.4]} 31. g3 {[%clk 0:01:10.5]} 31... h5 {[%clk
0:00:17.3]} 32. Rd3 {[%clk 0:01:08.4]} 32... h4 {[%clk 0:00:17.2]} 33. Rf3
{[%clk 0:01:07.5]} 33... Qc2 {[%clk 0:00:14]} 34. Rxf7+ {[%clk 0:01:05.8]} 34...
Kh6 {[%clk 0:00:13.6]} 35. Rxf8 {[%clk 0:00:45.3]} 35... Bxf8 {[%clk 0:00:14.5]}
36. gxh4 {[%clk 0:00:42]} 36... Qc1+ {[%clk 0:00:13.7]} 37. Kg2 {[%clk
0:00:41.2]} 37... Be7 {[%clk 0:00:14.6]} 38. Qd3 {[%clk 0:00:38]} 38... Bxh4
{[%clk 0:00:12.8]} 39. Qe3+ {[%clk 0:00:23.9]} 39... Qxe3 {[%clk 0:00:12.8]} 40.
fxe3 {[%clk 0:00:24.8]} 40... Bd8 {[%clk 0:00:13.5]} 41. Kf3 {[%clk 0:00:21.4]}
41... Kg5 {[%clk 0:00:13.1]} 42. Ke2 {[%clk 0:00:21.2]} 42... Ba5 {[%clk
0:00:13.5]} 43. Kd3 {[%clk 0:00:20.4]} 43... Kh4 {[%clk 0:00:13.9]} 44. Be6
{[%clk 0:00:19.1]} 44... g5 {[%clk 0:00:10.7]} 45. h3 {[%clk 0:00:19.2]} 45...
Kg3 {[%clk 0:00:10.6]} 46. a4 {[%clk 0:00:19.1]} 46... Kf2 {[%clk 0:00:10.8]}
47. Kc4 {[%clk 0:00:18.4]} 47... Kxe3 {[%clk 0:00:11.3]} 48. Bf5 {[%clk
0:00:17.8]} 48... Bb6 {[%clk 0:00:06.7]} 49. Kd5 {[%clk 0:00:14.6]} 49... Bc5
{[%clk 0:00:05.5]} 50. a5 {[%clk 0:00:14.8]} 50... Kf4 {[%clk 0:00:04.6]} 51. a6
{[%clk 0:00:14.9]} 51... Kf3 {[%clk 0:00:04.7]} 52. Kc6 {[%clk 0:00:14.6]} 52...
Kf4 {[%clk 0:00:04.9]} 53. Kd5 {[%clk 0:00:14.4]} 53... Kf3 {[%clk 0:00:04.7]}
54. Kc4 {[%clk 0:00:11.4]} 54... Ke3 {[%clk 0:00:04.8]} 55. Kd5 {[%clk 0:00:11]}
55... Kf4 {[%clk 0:00:05.4]} 56. Be6 {[%clk 0:00:07.6]} 56... Ke3 {[%clk
0:00:04.9]} 57. Bg4 {[%clk 0:00:06.9]} 57... Kf4 {[%clk 0:00:05.3]} 58. Bf5
{[%clk 0:00:05]} 1/2-1/2